fUSD/lending_fUSD_20250828
["ID","MTS","AMOUNT","RATE_DAILY","PERIOD"]
[381782445,1756345845488,-413.44967672,0.00017204,2]
[381782448,1756345845498,-400.0,0.00017204,2]
[381782452,1756345845508,-400.0,0.00017204,2]
[381782455,1756345845518,-424.50540622,0.00017204,2]
[381782458,1756345845527,-400.0,0.00017204,2]
[381782461,1756345845537,-400.0,0.00017204,2]
[381782464,1756345845548,-403.12286711,0.00017204,2]
[381782465,1756345845569,-400.0,0.00017204,2]
[381782470,1756345845585,-419.3383321,0.00017204,2]
[381782473,1756345845595,-427.95933955,0.00017204,2]
[381782475,1756345845605,-432.08247981,0.00017204,2]
[381782478,1756345845615,-415.93851243,0.00017204,2]
[381782482,1756345845625,-416.41167751,0.00017204,2]
[381782485,1756345845634,-400.0,0.00017205,2]
[381782487,1756345845643,-400.0,0.00017205,2]
[381782490,1756345845653,-400.0,0.00017205,2]
[381782493,1756345845663,-400.0,0.00017205,2]
[381782496,1756345845673,-400.0,0.00017205,2]
[381782499,1756345845684,-400.0,0.00017205,2]
[381782502,1756345845694,-400.0,0.00017205,2]
[381782505,1756345845704,-400.0,0.00017205,2]
[381782508,1756345845714,-400.0,0.00017205,2]
[381782511,1756345845723,-152.96748228,0.00017205,2]
[381782514,1756345845733,-400.0,0.00017205,2]
[381782517,1756345845743,-400.0,0.00017205,2]
[381782520,1756345845753,-476.61,0.00017205,2]
[381782522,1756345845765,-400.0,0.00017205,2]
[381782524,1756345845775,-400.0,0.00017205,2]
[381782526,1756345845785,-400.0,0.00017205,2]
[381782528,1756345845794,-400.0,0.00017205,2]
[381782530,1756345845804,-400.0,0.00017205,2]
[381782532,1756345845816,-400.0,0.00017205,2]
[381782534,1756345845826,-400.0,0.00017205,2]
[381782536,1756345845837,-400.0,0.00017205,2]
[381782538,1756345845849,-440.73,0.00017205,2]
[381782540,1756345845859,-400.0,0.00017205,2]
[381782542,1756345845869,-259.73647947,0.00017205,2]
[381782544,1756345845879,-400.0,0.00017205,2]
[381782546,1756345845888,-451.60656389,0.00017205,2]
[381782548,1756345845898,-329.356751,0.00017205,2]
[381782550,1756345845908,-400.0,0.00017205,2]
[381782552,1756345845918,-400.0,0.00017205,2]
[381782554,1756345845928,-441.58545973,0.00017205,2]
[381782556,1756345845939,-242.96247737,0.00017205,2]
[381782558,1756345845949,-400.0,0.00017205,2]
[381782560,1756345845959,-400.0,0.00017205,2]
[381782562,1756345845969,-400.0,0.00017205,2]
[381782564,1756345845979,-400.0,0.00017205,2]
[381782567,1756345845989,-272.92852271,0.00017205,2]
[381782569,1756345845999,-400.0,0.00017205,2]
[381782570,1756345846009,-400.0,0.00017205,2]
[381782572,1756345846019,-400.0,0.00017205,2]
[381782574,1756345846029,-400.0,0.00017205,2]
[381782577,1756345846039,-400.0,0.00017205,2]
[381782578,1756345846048,-400.0,0.00017205,2]
[381782580,1756345846057,-400.0,0.00017205,2]
[381782582,1756345846066,-400.0,0.00017205,2]
[381782584,1756345846077,-400.0,0.00017205,2]
[381782587,1756345846086,-400.0,0.00017205,2]
[381782589,1756345846096,-400.0,0.00017205,2]
[381782591,1756345846106,-400.0,0.00017205,2]
[381782592,1756345846116,-400.0,0.00017205,2]
[381782595,1756345846127,-554.52,0.00017205,2]
[381782597,1756345846137,-400.0,0.00017205,2]
[381782599,1756345846146,-400.0,0.00017205,2]
[381782600,1756345846155,-400.0,0.00017205,2]
[381782602,1756345846165,-400.0,0.00017205,2]
[381782604,1756345846174,-400.0,0.00017205,2]
[381782606,1756345846185,-400.0,0.00017205,2]
[381782608,1756345846194,-400.0,0.00017205,2]
[381782610,1756345846204,-400.0,0.00017205,2]
[381782612,1756345846213,-400.0,0.00017205,2]
[381782614,1756345846223,-400.0,0.00017205,2]
[381782615,1756345846231,-400.0,0.00017205,2]
[381782616,1756345846240,-400.0,0.00017205,2]
[381782617,1756345846249,-400.0,0.00017205,2]
[381782618,1756345846259,-466.38713529,0.00017205,2]
[381782619,1756345846268,-400.0,0.00017205,2]
[381782621,1756345846277,-400.0,0.00017205,2]
[381782623,1756345846287,-400.0,0.00017205,2]
[381782624,1756345846296,-400.0,0.00017205,2]
[381782625,1756345846305,-402.18713504,0.00017205,2]
[381782626,1756345846315,-400.0,0.00017205,2]
[381782627,1756345846324,-400.0,0.00017205,2]
[381782628,1756345846334,-584.88,0.00017205,2]
[381782629,1756345846344,-400.0,0.00017205,2]
[381782630,1756345846354,-400.0,0.00017205,2]
[381782631,1756345846363,-400.0,0.00017205,2]
[381782632,1756345846373,-400.0,0.00017205,2]
[381782633,1756345846383,-400.0,0.00017205,2]
[381782634,1756345846392,-339.5195136,0.00017205,2]
[381782635,1756345846401,-400.0,0.00017205,2]
[381782636,1756345846411,-400.0,0.00017205,2]
[381782637,1756345846420,-400.0,0.00017205,2]
[381782638,1756345846430,-400.0,0.00017205,2]
[381782639,1756345846439,-400.0,0.00017205,2]
[381782640,1756345846448,-400.0,0.00017205,2]
[381782641,1756345846458,-400.0,0.00017205,2]
[381782642,1756345846467,-400.0,0.00017205,2]
[381782643,1756345846477,-300.0,0.00017205,2]
[381782644,1756345846486,-289.10366381,0.00017205,2]
[381782645,1756345846496,-400.0,0.00017205,2]
[381782646,1756345846505,-400.0,0.00017205,2]
[381782647,1756345846515,-400.0,0.00017205,2]
[381782648,1756345846524,-675.97,0.00017205,2]
[381782649,1756345846534,-400.0,0.00017205,2]
[381782650,1756345846543,-483.29,0.00017205,2]
[381782651,1756345846552,-400.0,0.00017205,2]
[381782652,1756345846562,-400.0,0.00017205,2]
[381782653,1756345846571,-400.0,0.00017205,2]
[381782654,1756345846581,-400.0,0.00017205,2]
[381782655,1756345846590,-400.0,0.00017205,2]
[381782656,1756345846600,-400.0,0.00017205,2]
[381782657,1756345846610,-405.51763321,0.00017205,2]
[381782658,1756345846619,-400.0,0.00017205,2]
[381782659,1756345846629,-400.0,0.00017205,2]
[381782660,1756345846639,-400.0,0.00017205,2]
[381782661,1756345846648,-400.0,0.00017205,2]
[381782662,1756345846657,-400.0,0.00017205,2]
[381782663,1756345846667,-400.0,0.00017205,2]
[381782664,1756345846676,-400.0,0.00017205,2]
[381782665,1756345846686,-400.0,0.00017205,2]
[381782666,1756345846696,-400.0,0.00017205,2]
[381782667,1756345846706,-400.0,0.00017205,2]
[381782668,1756345846715,-400.0,0.00017205,2]
[381782669,1756345846772,-437.97051042,0.00017205,2]
[381782670,1756345846782,-400.0,0.00017205,2]
[381782671,1756345846792,-400.0,0.00017205,2]
[381782672,1756345846808,-400.0,0.00017205,2]
[381782673,1756345846819,-400.0,0.00017205,2]
[381782674,1756345846829,-400.0,0.00017205,2]
[381782675,1756345846839,-400.0,0.00017205,2]
[381782676,1756345846849,-400.0,0.00017205,2]
[381782677,1756345846861,-400.0,0.00017205,2]
[381782678,1756345846870,-400.0,0.00017205,2]
[381782679,1756345846879,-400.0,0.00017205,2]
[381782680,1756345846889,-400.0,0.00017205,2]
[381782681,1756345846899,-400.0,0.00017205,2]
[381782682,1756345846910,-400.0,0.00017205,2]
[381782683,1756345846920,-400.0,0.00017205,2]
[381782684,1756345846930,-400.0,0.00017205,2]
[381782685,1756345846939,-400.0,0.00017205,2]
[381782686,1756345846949,-400.0,0.00017205,2]
[381782687,1756345846958,-400.0,0.00017205,2]
[381782688,1756345846968,-400.0,0.00017205,2]
[381782689,1756345846977,-400.0,0.00017205,2]
[381782690,1756345846986,-400.0,0.00017205,2]
[381782691,1756345846996,-400.0,0.00017205,2]
[381782692,1756345847006,-155.66807875,0.00017205,2]
[381782693,1756345847015,-215.96405491,0.00017205,2]
[381782694,1756345847026,-400.0,0.00017205,2]
[381782695,1756345847036,-400.0,0.00017205,2]
[381782696,1756345847047,-400.0,0.00017205,2]
[381782697,1756345847057,-400.0,0.00017205,2]
[381782698,1756345847067,-400.0,0.00017205,2]
[381782699,1756345847076,-400.0,0.00017205,2]
[381782700,1756345847086,-275.4510807,0.00017205,2]
[381782701,1756345847095,-400.0,0.00017205,2]
[381782702,1756345847104,-400.0,0.00017205,2]
[381782703,1756345847114,-400.0,0.00017205,2]
[381782704,1756345847124,-400.0,0.00017205,2]
[381782705,1756345847133,-400.0,0.00017205,2]
[381782706,1756345847143,-400.0,0.00017205,2]
[381782707,1756345847152,-192.72381185,0.00017205,2]
[381782708,1756345847163,-400.0,0.00017205,2]
[381782709,1756345847173,-400.0,0.00017205,2]
[381782710,1756345847182,-400.0,0.00017205,2]
[381782711,1756345847192,-400.0,0.00017205,2]
[381782712,1756345847202,-400.0,0.00017205,2]
[381782713,1756345847211,-400.0,0.00017205,2]
[381782714,1756345847221,-400.0,0.00017205,2]
[381782715,1756345847231,-400.0,0.00017205,2]
[381782716,1756345847240,-400.0,0.00017205,2]
[381782717,1756345847250,-400.0,0.00017205,2]
[381782718,1756345847260,-400.0,0.00017205,2]
[381782719,1756345847271,-400.0,0.00017205,2]
[381782720,1756345847281,-400.0,0.00017205,2]
[381782721,1756345847292,-400.0,0.00017205,2]
[381782722,1756345847301,-400.0,0.00017205,2]
[381782723,1756345847310,-400.0,0.00017205,2]
[381782724,1756345847319,-400.0,0.00017205,2]
[381782725,1756345847329,-400.0,0.00017205,2]
[381782726,1756345847338,-400.0,0.00017205,2]
[381782727,1756345847347,-400.0,0.00017205,2]
[381782728,1756345847356,-400.0,0.00017205,2]
[381782729,1756345847365,-400.0,0.00017205,2]
[381782730,1756345847374,-400.0,0.00017205,2]
[381782731,1756345847383,-400.0,0.00017205,2]
[381782732,1756345847392,-400.0,0.00017205,2]
[381782733,1756345847401,-400.0,0.00017205,2]
[381782734,1756345847410,-408.4,0.00017205,2]
[381782735,1756345847421,-898.08,0.00017205,2]
[381782736,1756345847431,-400.0,0.00017205,2]
[381782737,1756345847440,-400.0,0.00017205,2]
[381782738,1756345847450,-400.0,0.00017205,2]
[381782739,1756345847462,-400.0,0.00017205,2]
[381782740,1756345847472,-400.0,0.00017205,2]
[381782741,1756345847482,-400.0,0.00017205,2]
[381782742,1756345847491,-400.0,0.00017205,2]
[381782743,1756345847501,-400.0,0.00017205,2]
[381782744,1756345847511,-400.0,0.00017205,2]
[381782745,1756345847522,-500.0,0.00017241,2]
[381782746,1756345847531,-400.0,0.00017241,2]
[381782747,1756345847540,-400.0,0.00017241,2]
[381782748,1756345847550,-500.0,0.00017241,2]
[381782749,1756345847559,-401.71209473,0.00017241,2]
[381782750,1756345847568,-400.0,0.00017241,2]
[381782751,1756345847578,-392.22323888,0.00017241,2]
[381782752,1756345847587,-400.0,0.00017241,2]
[381782753,1756345847596,-400.0,0.00017241,2]
[381782754,1756345847605,-400.0,0.00017241,2]
[381782755,1756345847615,-400.0,0.00017241,2]
[381782756,1756345847624,-400.0,0.00017241,2]
[381782757,1756345847633,-400.0,0.00017241,2]
[381782758,1756345847643,-409.67022561,0.00017241,2]
[381782759,1756345847652,-400.0,0.00017241,2]
[381782760,1756345847661,-400.0,0.00017241,2]
[381782761,1756345847671,-400.0,0.00017241,2]
[381782762,1756345847681,-400.0,0.00017241,2]
[381782763,1756345847690,-400.0,0.00017241,2]
[381782764,1756345847700,-400.0,0.00017241,2]
[381782765,1756345847709,-401.11745829,0.00017241,2]
[381782766,1756345847718,-400.0,0.00017241,2]
[381782767,1756345847727,-400.0,0.00017241,2]
[381782768,1756345847736,-400.0,0.00017241,2]
[381782769,1756345847745,-451.12533204,0.00017241,2]
[381782770,1756345847754,-400.0,0.00017241,2]
[381782771,1756345847767,-400.0,0.00017241,2]
[381782772,1756345847776,-400.0,0.00017241,2]
[381782773,1756345847785,-402.0652996,0.00017241,2]
[381782774,1756345847794,-400.95801727,0.00017241,2]
[381782775,1756345847803,-401.49603542,0.00017241,2]
[381782776,1756345847812,-401.33301977,0.00017241,2]
[381782777,1756345847821,-400.0,0.00017241,2]
[381782778,1756345847830,-401.30097447,0.00017241,2]
[381782779,1756345847840,-505.31258653,0.00017241,2]
[381782780,1756345847850,-401.56430143,0.00017241,2]
[381782781,1756345847860,-400.0,0.00017241,2]
[381782782,1756345847869,-400.80160389,0.00017241,2]
[381782783,1756345847878,-401.05449838,0.00017241,2]
[381782784,1756345847887,-401.47687687,0.00017241,2]
[381782785,1756345847896,-401.49780548,0.00017241,2]
[381782786,1756345847905,-400.0,0.00017241,2]
[381782787,1756345847914,-401.08371699,0.00017241,2]
[381782788,1756345847923,-401.94915042,0.00017241,2]
[381782789,1756345847934,-400.0,0.00017241,2]
[381782790,1756345847943,-400.0,0.00017241,2]
[381782791,1756345847951,-400.0,0.00017241,2]
[381782792,1756345847960,-401.75720447,0.00017241,2]
[381782793,1756345847969,-400.0,0.00017241,2]
[381782794,1756345847978,-401.03280424,0.00017241,2]
[381782795,1756345847987,-400.0,0.00017241,2]
[381782796,1756345847996,-400.0,0.00017241,2]
[381782797,1756345848005,-400.0,0.00017241,2]
[381782798,1756345848015,-400.0,0.00017241,2]
[381782799,1756345848024,-401.4122725,0.00017241,2]
[381782800,1756345848033,-400.0,0.00017241,2]
[381782801,1756345848042,-401.41895519,0.00017241,2]
[381782802,1756345848051,-400.67681324,0.00017241,2]
[381782803,1756345848061,-400.0,0.00017241,2]
[381782804,1756345848070,-400.55973273,0.00017241,2]
[381782805,1756345848079,-400.0,0.00017241,2]
[381782806,1756345848088,-400.74592302,0.00017241,2]
[381782807,1756345848097,-401.34053278,0.00017241,2]
[381782808,1756345848106,-400.97463428,0.00017241,2]
[381782809,1756345848115,-400.0,0.00017241,2]
[381782810,1756345848124,-151.711759,0.00017241,2]
[381782811,1756345848134,-1359.07,0.00017241,2]
[381782812,1756345848143,-401.66410046,0.00017241,2]
[381782813,1756345848152,-400.0,0.00017241,2]
[381782814,1756345848161,-400.0,0.00017241,2]
[381782815,1756345848170,-400.0,0.00017241,2]
[381782816,1756345848180,-439.66622335,0.00017241,2]
[381782817,1756345848189,-400.0,0.00017241,2]
[381782818,1756345848199,-400.0,0.00017241,2]
[381782819,1756345848209,-400.84346235,0.00017241,2]
[381782820,1756345848218,-400.0,0.00017241,2]
[381782821,1756345848227,-521.71632062,0.00017241,2]
[381782822,1756345848237,-400.0,0.00017241,2]
[381782823,1756345848246,-453.58621095,0.00017241,2]
[381782824,1756345848255,-501.48836585,0.00017241,2]
[381782825,1756345848264,-400.0,0.00017241,2]
[381782826,1756345848274,-400.59903611,0.00017241,2]
[381782827,1756345848283,-401.59866657,0.00017241,2]
[381782828,1756345848292,-400.0,0.00017241,2]
[381782829,1756345848302,-402.55088556,0.00017241,2]
[381782830,1756345848311,-400.0,0.00017241,2]
[381782831,1756345848320,-401.1486753,0.00017241,2]
[381782832,1756345848330,-401.73415448,0.00017241,2]
[381782833,1756345848339,-429.31,0.00017241,2]
[381782834,1756345848348,-412.33009607,0.00017241,2]
[381782835,1756345848358,-401.51730226,0.00017241,2]
[381782836,1756345848367,-401.27190151,0.00017241,2]
[381782837,1756345848376,-400.88498691,0.00017241,2]
[381782838,1756345848385,-401.10809623,0.00017241,2]
[381782839,1756345848394,-400.0,0.00017241,2]
[381782840,1756345848404,-400.0,0.00017241,2]
[381782841,1756345848413,-401.38840932,0.00017241,2]
[381782842,1756345848422,-441.40732607,0.00017241,2]
[381782843,1756345848431,-400.0,0.00017241,2]
[381782844,1756345848441,-281.81962968,0.00017241,2]
[381782845,1756345848450,-400.80682397,0.00017241,2]
[381782846,1756345848459,-552.07,0.00017241,2]
[381782847,1756345848468,-501.60801623,0.00017241,2]
[381782848,1756345848477,-401.7139537,0.00017241,2]
[381782849,1756345848492,-485.73513257,0.00017241,2]
[381782850,1756345848501,-400.0,0.00017241,2]
[381782851,1756345848511,-401.85598419,0.00017241,2]
[381782852,1756345848520,-401.82613786,0.00017241,2]
[381782853,1756345848529,-401.30354461,0.00017241,2]
[381782854,1756345848538,-460.05678469,0.00017241,2]
[381782855,1756345848547,-401.32898619,0.00017241,2]
[381782856,1756345848557,-400.0,0.00017241,2]
[381782857,1756345848567,-401.10093422,0.00017241,2]
[381782858,1756345848575,-400.0,0.00017241,2]
[381782859,1756345848585,-401.03202046,0.00017241,2]
[381782860,1756345848594,-169.52570798,0.00017241,2]
[381782861,1756345848603,-400.0,0.00017241,2]
[381782862,1756345848613,-162.6659965,0.00017241,2]
[381782863,1756345848622,-400.0,0.00017241,2]
[381782864,1756345848632,-401.41346558,0.00017241,2]
[381782865,1756345848641,-400.0,0.00017241,2]
[381782866,1756345848651,-400.0,0.00017241,2]
[381782867,1756345848660,-400.0,0.00017241,2]
[381782868,1756345848669,-400.0,0.00017241,2]
[381782869,1756345848680,-427.94975029,0.00017241,2]
[381782870,1756345848689,-400.0,0.00017241,2]
[381782871,1756345848698,-400.0,0.00017241,2]
[381782872,1756345848708,-442.68,0.00017241,2]
[381782873,1756345848717,-400.0,0.00017241,2]
[381782874,1756345848726,-400.0,0.00017241,2]
[381782875,1756345848736,-401.81053824,0.00017241,2]
[381782876,1756345848746,-401.35007162,0.00017241,2]
[381782877,1756345848755,-495.96,0.00017241,2]
[381782878,1756345848769,-759.78,0.00017241,2]
[381782879,1756345848779,-400.36511228,0.00017241,2]
[381782880,1756345848788,-401.37887869,0.00017241,2]
[381782881,1756345848797,-400.54278887,0.00017241,2]
[381782882,1756345848807,-400.49323768,0.00017241,2]
[381782883,1756345848816,-400.98468993,0.00017241,2]
[381782884,1756345848825,-400.0,0.00017241,2]
[381782885,1756345848835,-415.2986332,0.00017241,2]
[381782886,1756345848844,-400.0,0.00017241,2]
[381782887,1756345848853,-501.39111458,0.00017241,2]
[381782888,1756345848863,-408.93157897,0.00017241,2]
[381782889,1756345848872,-400.0,0.00017241,2]
[381782890,1756345848881,-401.78547248,0.00017241,2]
[381782891,1756345848890,-444.90815116,0.00017241,2]
[381782892,1756345848900,-401.15904988,0.00017241,2]
[381782893,1756345848909,-400.75849914,0.00017241,2]
[381782894,1756345848918,-418.37074767,0.00017241,2]
[381782895,1756345848927,-457.11,0.00017241,2]
[381782896,1756345848937,-1430.06,0.00017241,2]
[381782897,1756345848946,-400.0,0.00017242,2]
[381782898,1756345848956,-400.0,0.00017242,2]
[381782899,1756345848965,-400.0,0.00017242,2]
[381782900,1756345848974,-394.8818267,0.00017242,2]
[381782901,1756345848983,-400.0,0.00017242,2]
[381782902,1756345848993,-1652.71,0.00017242,2]
[381782903,1756345849002,-400.0,0.00017242,2]
[381782904,1756345849011,-400.0,0.00017242,2]
[381782905,1756345849020,-400.0,0.00017242,2]
[381782906,1756345849029,-444.12,0.00017242,2]
[381782907,1756345849038,-463.26,0.00017242,2]
[381782908,1756345849048,-400.0,0.00017242,2]
[381782909,1756345849057,-400.0,0.00017242,2]
[381782910,1756345849066,-400.0,0.00017242,2]
[381782911,1756345849075,-400.0,0.00017242,2]
[381782912,1756345849084,-400.0,0.00017242,2]
[381782913,1756345849093,-5282.36519514,0.00017243,2]
[381782914,1756345849372,-380.17480486,0.00017243,2]
[381782915,1756345849382,-145.07956566,0.00017243,2]
[381782916,1756345849419,-1092.83990471,0.00017243,2]
[381782917,1756345849430,-1166.63052963,0.00017243,2]
[381782918,1756345849439,-400.0,0.00017243,2]
[381782919,1756345849449,-447.04,0.00017243,2]
[381782920,1756345849458,-400.0,0.00017243,2]
[381782921,1756345849467,-1621.43,0.00017243,2]
[381782922,1756345849476,-479.03,0.00017243,2]
[381782923,1756345849485,-400.0,0.00017243,2]
[381782924,1756345849494,-162.03973945,0.00017243,2]
[381782925,1756345849758,-400.0,0.00016695,2]
[381782926,1756345849772,-400.0,0.00016969,2]
[381782927,1756345849782,-342.01026055,0.00017243,2]
[381782928,1756345849791,-400.0,0.00017243,2]
[381782929,1756345849800,-400.0,0.00017243,2]
[381782930,1756345849810,-400.0,0.00017243,2]
[381782931,1756345849819,-500.0,0.00017247,2]
[381782932,1756345849828,-500.0,0.00017273,2]
[381782933,1756345849837,-201.0,0.000174,2]
[381782934,1756345849846,-212.21549908,0.00017458,2]
[381782935,1756345849855,-409.74954487,0.00017458,2]
[381782936,1756345849864,-844.78141368,0.0001746,2]
[381782937,1756345849873,-400.0,0.00017476,2]
[381782938,1756345849882,-413.62,0.00017476,2]
[381782939,1756345849890,-400.0,0.00017476,2]
[381782940,1756345849899,-400.0,0.00017476,2]
[381782941,1756345849909,-400.0,0.00017476,2]
[381782942,1756345849919,-1534.91,0.00017476,2]
[381782943,1756345849927,-400.0,0.00017476,2]
[381782944,1756345849936,-400.0,0.00017476,2]
[381782945,1756345849945,-400.0,0.00017476,2]
[381782946,1756345849954,-441.96465607,0.00017476,2]
[381782947,1756345849963,-400.0,0.00017476,2]
[381782948,1756345849972,-400.0,0.00017477,2]
[381782949,1756345849980,-400.0,0.00017477,2]
[381782950,1756345849989,-204.74977342,0.00017477,2]
[381782951,1756345849998,-400.0,0.00017477,2]
[381782952,1756345850007,-330.14109023,0.00017477,2]
[381782953,1756345850016,-345.45639407,0.00017477,2]
[381782954,1756345850025,-400.0,0.00017477,2]
[381782955,1756345850034,-204.39538446,0.00017477,2]
[381782956,1756345850042,-430.7229692,0.00017477,2]
[381782957,1756345850051,-333.02923449,0.00017477,2]
[381782958,1756345850060,-400.0,0.00017477,2]
[381782959,1756345850071,-246.09495159,0.00017477,2]
[381782960,1756345850080,-400.0,0.00017477,2]
[381782961,1756345850090,-315.53673414,0.00017477,2]
[381782962,1756345850100,-400.0,0.00017477,2]
[381782963,1756345850109,-160.01709793,0.00017477,2]
[381782964,1756345850118,-400.0,0.00017477,2]
[381782965,1756345850127,-400.0,0.00017477,2]
[381782966,1756345850137,-180.63891009,0.00017477,2]
[381782967,1756345850147,-225.34837299,0.00017477,2]
[381782968,1756345850158,-367.11074361,0.00017477,2]
[381782969,1756345850168,-400.0,0.00017477,2]
[381782970,1756345850178,-321.48410841,0.00017477,2]
[381782971,1756345850188,-152.06729932,0.00017477,2]
[381782972,1756345850197,-283.84202933,0.00017477,2]
[381782973,1756345850207,-343.36378011,0.00017477,2]
[381782974,1756345850217,-423.0841929,0.00017477,2]
[381782975,1756345850226,-400.0,0.00017477,2]
[381782976,1756345850234,-530.7188271,0.00017477,2]
[381782977,1756345850243,-215.16564745,0.00017477,2]
[381782978,1756345850252,-400.0,0.00017477,2]
[381782979,1756345850262,-385.22606256,0.00017477,2]
[381782980,1756345850271,-302.25261763,0.00017477,2]
[381782981,1756345850283,-400.0,0.00017477,2]
[381782982,1756345850292,-400.0,0.00017477,2]
[381782983,1756345850301,-307.6611119,0.00017477,2]
[381782984,1756345850311,-400.0,0.00017477,2]
[381782985,1756345850320,-400.0,0.00017477,2]
[381782986,1756345850329,-243.56434055,0.00017477,2]
[381782987,1756345850338,-417.50397465,0.00017477,2]
[381782988,1756345850347,-400.0,0.00017477,2]
[381782989,1756345850357,-400.0,0.00017477,2]
[381782990,1756345850366,-390.63613276,0.00017477,2]
[381782991,1756345850374,-296.86917481,0.00017477,2]
[381782992,1756345850383,-256.69913521,0.00017477,2]
[381782993,1756345850395,-400.0,0.00017477,2]
[381782994,1756345850404,-151.0043438,0.00017477,2]
[381782995,1756345850413,-400.0,0.00017477,2]
[381782996,1756345850422,-394.96889571,0.00017477,2]
[381782997,1756345850432,-435.8412904,0.00017477,2]
[381782998,1756345850441,-400.0,0.00017477,2]
[381782999,1756345850554,-400.0,0.00017477,2]
[381783000,1756345850563,-386.24865871,0.00017477,2]
[381783001,1756345850573,-357.92084331,0.00017477,2]
[381783002,1756345850582,-552.82,0.00017477,2]
[381783003,1756345850591,-400.0,0.00017477,2]
[381783004,1756345850600,-490.37216343,0.00017477,2]
[381783005,1756345850608,-400.91427079,0.00017477,2]
[381783006,1756345850618,-400.0,0.00017477,2]
[381783007,1756345850627,-400.0,0.00017477,2]
[381783008,1756345850636,-487.65601883,0.00017477,2]
[381783009,1756345850645,-326.7410131,0.00017477,2]
[381783010,1756345850654,-400.0,0.00017477,2]
[381783011,1756345850663,-400.0,0.00017477,2]
[381783012,1756345850672,-400.0,0.00017477,2]
[381783013,1756345850681,-397.7430412,0.00017477,2]
[381783014,1756345850690,-400.0,0.00017477,2]
[381783015,1756345850699,-400.0,0.00017477,2]
[381783016,1756345850708,-400.0,0.00017477,2]
[381783017,1756345850717,-400.0,0.00017477,2]
[381783018,1756345850726,-400.0,0.00017477,2]
[381783019,1756345850735,-400.0,0.00017477,2]
[381783020,1756345850744,-400.0,0.00017477,2]
[381783021,1756345850753,-233.885936,0.00017477,2]
[381783022,1756345850765,-400.0,0.00017477,2]
[381783023,1756345850774,-340.206017,0.00017477,2]
[381783024,1756345850782,-400.0,0.00017477,2]
[381783025,1756345850791,-400.0,0.00017477,2]
[381783026,1756345850800,-171.56488,0.00017477,2]
[381783027,1756345850810,-400.0,0.00017477,2]
[381783028,1756345850819,-607.93,0.00017477,2]
[381783029,1756345850828,-400.0,0.00017477,2]
[381783030,1756345850838,-547.41,0.00017477,2]
[381783031,1756345850847,-400.0,0.00017478,2]
[381783032,1756345850856,-400.0,0.00017478,2]
[381783033,1756345850865,-400.0,0.00017478,2]
[381783034,1756345850875,-400.0,0.00017478,2]
[381783035,1756345850885,-400.0,0.00017478,2]
[381783036,1756345850895,-400.0,0.00017478,2]
[381783037,1756345850904,-400.0,0.00017478,2]
[381783038,1756345850916,-400.0,0.00017478,2]
[381783039,1756345850924,-400.0,0.00017478,2]
[381783040,1756345850934,-400.0,0.00017478,2]
[381783041,1756345850943,-400.0,0.00017478,2]
[381783042,1756345850952,-400.0,0.00017478,2]
[381783043,1756345850962,-400.0,0.00017478,2]